[Event "Titled Tuesday Blitz March 21 Early 2023"]
[White "Omelja, Artem"]
[Black "Karthik Rajaa"]
[WhiteFideId "14119846"]
[BlackFideId "25035215"]
[WhiteElo "2404"]
[BlackElo "2215"]
[Result "1/2-1/2"]
[Round "05"]
[TimeControl "180+2"]
[Date "2023.03.21"]
[WhiteClock "0:00:05"]
[BlackClock "0:00:13"]

1. e4 {[%clk 0:03:00]}  c6 {[%clk 0:02:58]} 2. d3 {[%clk 0:02:59]}  d5 {[%clk 0:02:58]} 3. Nd2 {[%clk 0:03:00]}  e5 {[%clk 0:02:57]} 4. Ngf3 {[%clk 0:03:00]}  Bd6 {[%clk 0:02:57]} 5. c3 {[%clk 0:03:00]}  Nf6 {[%clk 0:02:57]} 6. Qc2 {[%clk 0:03:00]}  O-O {[%clk 0:02:56]} 7. a4 {[%clk 0:03:00]}  a5 {[%clk 0:02:55]} 8. Be2 {[%clk 0:03:00]}  Re8 {[%clk 0:02:55]} 9. O-O {[%clk 0:03:00]}  Nbd7 {[%clk 0:02:55]} 10. Re1 {[%clk 0:03:00]}  Nc5 {[%clk 0:02:52]} 11. Bf1 {[%clk 0:03:01]}  Bg4 {[%clk 0:02:48]} 12. h3 {[%clk 0:02:50]}  Bh5 {[%clk 0:02:48]} 13. exd5 {[%clk 0:02:49]}  cxd5 {[%clk 0:02:45]} 14. d4 {[%clk 0:02:49]}  Bg6 {[%clk 0:02:31]} 15. Qd1 {[%clk 0:02:40]}  exd4 {[%clk 0:02:29]} 16. Rxe8+ {[%clk 0:02:38]}  Qxe8 {[%clk 0:02:29]} 17. Nxd4 {[%clk 0:02:39]}  Nce4 {[%clk 0:02:22]} 18. N2f3 {[%clk 0:02:32]}  Bc5 {[%clk 0:02:17]} 19. Be3 {[%clk 0:02:29]}  b6 {[%clk 0:02:08]} 20. Bd3 {[%clk 0:02:15]}  Nd6 {[%clk 0:02:04]} 21. Be2 {[%clk 0:02:09]}  Nc4 {[%clk 0:02:01]} 22. Bc1 {[%clk 0:01:39]}  Rc8 {[%clk 0:01:56]} 23. b3 {[%clk 0:01:26]}  Nd6 {[%clk 0:01:54]} 24. Bf4 {[%clk 0:01:24]}  Nde4 {[%clk 0:01:51]} 25. Rc1 {[%clk 0:01:18]}  Ba3 {[%clk 0:01:50]} 26. Bb5 {[%clk 0:00:40]}  Qf8 {[%clk 0:01:43]} 27. c4 {[%clk 0:00:33]}  Bxc1 {[%clk 0:01:40]} 28. Bxc1 {[%clk 0:00:26]}  Nc3 {[%clk 0:01:33]} 29. Qe1 {[%clk 0:00:23]}  Nxb5 {[%clk 0:01:30]} 30. cxb5 {[%clk 0:00:17]}  Be4 {[%clk 0:01:23]} 31. Nc6 {[%clk 0:00:14]}  Re8 {[%clk 0:01:07]} 32. Be3 {[%clk 0:00:09]}  Bxf3 {[%clk 0:01:05]} 33. gxf3 {[%clk 0:00:10]}  d4 {[%clk 0:01:03]} 34. Nxd4 {[%clk 0:00:10]}  Nd5 {[%clk 0:01:03]} 35. Nc6 {[%clk 0:00:09]}  Nxe3 {[%clk 0:00:52]} 36. fxe3 {[%clk 0:00:10]}  Qc5 {[%clk 0:00:52]} 37. Kf2 {[%clk 0:00:10]}  Qc2+ {[%clk 0:00:50]} 38. Qe2 {[%clk 0:00:10]}  Qxb3 {[%clk 0:00:50]} 39. Qd2 {[%clk 0:00:09]}  h6 {[%clk 0:00:46]} 40. Qd4 {[%clk 0:00:05]}  Qc2+ {[%clk 0:00:43]} 41. Kg3 {[%clk 0:00:05]}  Re6 {[%clk 0:00:39]} 42. e4 {[%clk 0:00:03]}  Rg6+ {[%clk 0:00:36]} 43. Kf4 {[%clk 0:00:04]}  Qh2+ {[%clk 0:00:35]} 44. Ke3 {[%clk 0:00:03]}  Rd6 {[%clk 0:00:33]} 45. Qc3 {[%clk 0:00:02]}  Qg1+ {[%clk 0:00:31]} 46. Ke2 {[%clk 0:00:02]}  Qd1+ {[%clk 0:00:26]} 47. Ke3 {[%clk 0:00:03]}  Qg1+ {[%clk 0:00:17]} 48. Ke2 {[%clk 0:00:03]}  Rd1 {[%clk 0:00:18]} 49. Ne5 {[%clk 0:00:01]}  Qf1+ {[%clk 0:00:17]} 50. Ke3 {[%clk 0:00:02]}  Re1+ {[%clk 0:00:16]} 51. Kf4 {[%clk 0:00:02]}  Qf2 {[%clk 0:00:12]} 52. Qc8+ {[%clk 0:00:02]}  Kh7 {[%clk 0:00:12]} 53. Qf5+ {[%clk 0:00:03]}  Kh8 {[%clk 0:00:11]} 54. Qc8+ {[%clk 0:00:03]}  Kh7 {[%clk 0:00:11]} 55. Qf5+ {[%clk 0:00:03]}  Kh8 {[%clk 0:00:12]} 56. Nxf7+ {[%clk 0:00:02]}  Kg8 {[%clk 0:00:12]} 57. Nxh6+ {[%clk 0:00:02]}  gxh6 {[%clk 0:00:12]} 58. Qg6+ {[%clk 0:00:03]}  Kf8 {[%clk 0:00:12]} 59. Qf6+ {[%clk 0:00:03]}  Kg8 {[%clk 0:00:12]} 60. Qg6+ {[%clk 0:00:04]}  Kf8 {[%clk 0:00:13]} 61. Qf6+ {[%clk 0:00:04]}  Kg8 {[%clk 0:00:13]} 62. Qg6+ {[%clk 0:00:05]} 1/2-1/2


[Site "https://www.chess.com"]

[Event "Titled Tuesday Blitz March 21 Early 2023"]
[White "Nguyen Hong Nhung"]
[Black "Liyanage, Ranindu Dilshan"]
[WhiteFideId "12412201"]
[BlackFideId "9915834"]
[WhiteElo "1904"]
[BlackElo "2199"]
[Result "0-1"]
[Round "05"]
[TimeControl "180+2"]
[Date "2023.03.21"]
[WhiteClock "0:00:06"]
[BlackClock "0:00:15"]

1. e4 {[%clk 0:03:00]}  g6 {[%clk 0:02:59]} 2. d4 {[%clk 0:03:00]}  Bg7 {[%clk 0:03:00]} 3. Nc3 {[%clk 0:03:01]}  d6 {[%clk 0:03:00]} 4. f4 {[%clk 0:03:01]}  Nf6 {[%clk 0:02:59]} 5. Nf3 {[%clk 0:03:01]}  O-O {[%clk 0:03:00]} 6. Bd3 {[%clk 0:03:01]}  Na6 {[%clk 0:03:00]} 7. Bxa6 {[%clk 0:03:01]}  bxa6 {[%clk 0:03:00]} 8. e5 {[%clk 0:03:01]}  dxe5 {[%clk 0:02:59]} 9. fxe5 {[%clk 0:03:02]}  Nd5 {[%clk 0:02:59]} 10. Ne4 {[%clk 0:02:58]}  Bf5 {[%clk 0:02:44]} 11. Qe2 {[%clk 0:02:53]}  c5 {[%clk 0:02:36]} 12. Nxc5 {[%clk 0:02:46]}  Nb4 {[%clk 0:02:34]} 13. Nd3 {[%clk 0:02:17]}  Nxd3+ {[%clk 0:02:23]} 14. cxd3 {[%clk 0:02:18]}  Qa5+ {[%clk 0:02:23]} 15. Bd2 {[%clk 0:02:17]}  Qb5 {[%clk 0:02:24]} 16. Bc3 {[%clk 0:02:09]}  Bxd3 {[%clk 0:02:16]} 17. Qe3 {[%clk 0:02:06]}  Bf5 {[%clk 0:01:59]} 18. Qe2 {[%clk 0:02:00]}  Bd3 {[%clk 0:01:55]} 19. Qe3 {[%clk 0:02:00]}  a5 {[%clk 0:01:56]} 20. Kf2 {[%clk 0:01:54]}  Rfc8 {[%clk 0:01:54]} 21. Rhd1 {[%clk 0:01:53]}  Bc4 {[%clk 0:01:54]} 22. Kg1 {[%clk 0:01:52]}  a4 {[%clk 0:01:52]} 23. a3 {[%clk 0:01:46]}  Bd5 {[%clk 0:01:50]} 24. Rf1 {[%clk 0:01:40]}  a5 {[%clk 0:01:39]} 25. Ng5 {[%clk 0:01:32]}  h6 {[%clk 0:01:38]} 26. Ne4 {[%clk 0:01:29]}  Qc6 {[%clk 0:01:36]} 27. Rae1 {[%clk 0:01:22]}  Rab8 {[%clk 0:01:35]} 28. Rf2 {[%clk 0:01:16]}  Rb3 {[%clk 0:01:34]} 29. Nc5 {[%clk 0:01:12]}  Rb5 {[%clk 0:01:29]} 30. Nxa4 {[%clk 0:01:06]}  e6 {[%clk 0:01:24]} 31. Nc5 {[%clk 0:01:02]}  Bf8 {[%clk 0:01:21]} 32. Ref1 {[%clk 0:00:49]}  Rc7 {[%clk 0:01:18]} 33. Qd2 {[%clk 0:00:44]}  Bxc5 {[%clk 0:00:54]} 34. dxc5 {[%clk 0:00:45]}  Rxc5 {[%clk 0:00:55]} 35. Qxh6 {[%clk 0:00:42]}  Rd7 {[%clk 0:00:48]} 36. Bd2 {[%clk 0:00:36]}  Rc2 {[%clk 0:00:38]} 37. Bg5 {[%clk 0:00:23]}  Rxf2 {[%clk 0:00:38]} 38. Rxf2 {[%clk 0:00:23]}  Bxg2 {[%clk 0:00:25]} 39. Rxg2 {[%clk 0:00:09]}  Rd1+ {[%clk 0:00:25]} 40. Kf2 {[%clk 0:00:09]}  Qc2+ {[%clk 0:00:25]} 41. Kf3 {[%clk 0:00:07]}  Rd3+ {[%clk 0:00:26]} 42. Be3 {[%clk 0:00:06]}  Qd1+ {[%clk 0:00:26]} 43. Ke4 {[%clk 0:00:04]}  Rb3 {[%clk 0:00:14]} 44. Rxg6+ {[%clk 0:00:02]}  fxg6 {[%clk 0:00:14]} 45. Qxg6+ {[%clk 0:00:03]}  Kh8 {[%clk 0:00:14]} 46. Qh6+ {[%clk 0:00:04]}  Kg8 {[%clk 0:00:15]} 47. Qxe6+ {[%clk 0:00:04]}  Kh7 {[%clk 0:00:14]} 48. Qf7+ {[%clk 0:00:04]}  Kh8 {[%clk 0:00:14]} 49. Qf8+ {[%clk 0:00:05]}  Kh7 {[%clk 0:00:14]} 50. Qh6+ {[%clk 0:00:06]}  Kg8 {[%clk 0:00:14]} 51. Qg6+ {[%clk 0:00:05]}  Kh8 {[%clk 0:00:14]} 52. Qe8+ {[%clk 0:00:05]}  Kh7 {[%clk 0:00:13]} 53. Qf7+ {[%clk 0:00:05]}  Kh8 {[%clk 0:00:14]} 54. Qf6+ {[%clk 0:00:04]}  Kg8 {[%clk 0:00:13]} 55. Qg5+ {[%clk 0:00:04]}  Kf7 {[%clk 0:00:12]} 56. Qf4+ {[%clk 0:00:03]}  Ke8 {[%clk 0:00:12]} 57. e6 {[%clk 0:00:01]}  Qc2+ {[%clk 0:00:11]} 58. Ke5 {[%clk 0:00:02]}  Qxb2+ {[%clk 0:00:12]} 59. Kf5 {[%clk 0:00:02]}  Qc2+ {[%clk 0:00:12]} 60. Kf6 {[%clk 0:00:02]}  Qc3+ {[%clk 0:00:11]} 61. Qe5 {[%clk 0:00:02]}  Qxe5+ {[%clk 0:00:11]} 62. Kxe5 {[%clk 0:00:02]}  Rxe3+ {[%clk 0:00:12]} 63. Kf6 {[%clk 0:00:03]}  Rh3 {[%clk 0:00:13]} 64. Ke5 {[%clk 0:00:03]}  Rxh2 {[%clk 0:00:14]} 65. Kd6 {[%clk 0:00:04]}  Ra2 {[%clk 0:00:14]} 66. Kc5 {[%clk 0:00:05]}  Rxa3 {[%clk 0:00:15]} 67. Kb6 {[%clk 0:00:06]}  Re3 {[%clk 0:00:15]} 0-1


[Site "https://www.chess.com"]

[Event "Titled Tuesday Blitz March 21 Early 2023"]
[White "Hamitevici, Vladimir"]
[Black "Santos Flores, Alberto"]
[WhiteFideId "13902393"]
[BlackFideId "3601234"]
[WhiteElo "2401"]
[BlackElo "2235"]
[Result "0-1"]
[Round "05"]
[TimeControl "180+2"]
[Date "2023.03.21"]
[WhiteClock "0:00:01"]
[BlackClock "0:00:10"]

1. a3 {[%clk 0:03:00]}  e5 {[%clk 0:02:58]} 2. c4 {[%clk 0:03:00]}  Nf6 {[%clk 0:02:56]} 3. d3 {[%clk 0:03:01]}  c5 {[%clk 0:02:54]} 4. g3 {[%clk 0:02:50]}  d5 {[%clk 0:02:53]} 5. cxd5 {[%clk 0:02:49]}  Nxd5 {[%clk 0:02:53]} 6. Bg2 {[%clk 0:02:47]}  Nc6 {[%clk 0:02:53]} 7. Nc3 {[%clk 0:02:39]}  Be6 {[%clk 0:02:53]} 8. Nf3 {[%clk 0:02:32]}  Be7 {[%clk 0:02:44]} 9. Ng5 {[%clk 0:01:55]}  Bxg5 {[%clk 0:02:31]} 10. Bxg5 {[%clk 0:01:56]}  Nxc3 {[%clk 0:02:22]} 11. Bxd8 {[%clk 0:01:56]}  Nxd1 {[%clk 0:02:22]} 12. Bg5 {[%clk 0:01:39]}  Nxb2 {[%clk 0:02:14]} 13. Rb1 {[%clk 0:01:40]}  Na4 {[%clk 0:02:14]} 14. Rxb7 {[%clk 0:01:40]}  Rc8 {[%clk 0:02:15]} 15. Bxc6+ {[%clk 0:01:27]}  Rxc6 {[%clk 0:02:15]} 16. Re7+ {[%clk 0:01:28]}  Kf8 {[%clk 0:02:15]} 17. Rxa7 {[%clk 0:01:29]}  Nb6 {[%clk 0:02:15]} 18. O-O {[%clk 0:01:13]}  h6 {[%clk 0:02:12]} 19. Be3 {[%clk 0:01:02]}  Nd5 {[%clk 0:02:03]} 20. Ra8+ {[%clk 0:00:56]}  Bc8 {[%clk 0:02:03]} 21. Bd2 {[%clk 0:00:51]}  Ke7 {[%clk 0:01:39]} 22. Rc1 {[%clk 0:00:50]}  Rd8 {[%clk 0:01:29]} 23. Ba5 {[%clk 0:00:42]}  Re8 {[%clk 0:01:22]} 24. e4 {[%clk 0:00:34]}  Nf6 {[%clk 0:01:19]} 25. Bb4 {[%clk 0:00:26]}  Nd7 {[%clk 0:01:14]} 26. Ra7 {[%clk 0:00:22]}  Kd6 {[%clk 0:01:09]} 27. Bd2 {[%clk 0:00:20]}  Ra6 {[%clk 0:01:06]} 28. Rxa6+ {[%clk 0:00:21]}  Bxa6 {[%clk 0:01:07]} 29. Rc3 {[%clk 0:00:21]}  Ra8 {[%clk 0:01:02]} 30. f4 {[%clk 0:00:22]}  f6 {[%clk 0:01:00]} 31. Be3 {[%clk 0:00:22]}  Rc8 {[%clk 0:00:57]} 32. Kf2 {[%clk 0:00:21]}  Bb7 {[%clk 0:00:55]} 33. g4 {[%clk 0:00:18]}  c4 {[%clk 0:00:55]} 34. g5 {[%clk 0:00:17]}  hxg5 {[%clk 0:00:51]} 35. fxg5 {[%clk 0:00:16]}  cxd3 {[%clk 0:00:51]} 36. Rxd3+ {[%clk 0:00:17]}  Ke6 {[%clk 0:00:51]} 37. gxf6 {[%clk 0:00:17]}  Bxe4 {[%clk 0:00:48]} 38. Rb3 {[%clk 0:00:16]}  gxf6 {[%clk 0:00:48]} 39. a4 {[%clk 0:00:16]}  Bd5 {[%clk 0:00:44]} 40. Ra3 {[%clk 0:00:16]}  Ra8 {[%clk 0:00:41]} 41. a5 {[%clk 0:00:16]}  Bc4 {[%clk 0:00:39]} 42. h4 {[%clk 0:00:12]}  f5 {[%clk 0:00:38]} 43. h5 {[%clk 0:00:10]}  f4 {[%clk 0:00:39]} 44. Bc1 {[%clk 0:00:08]}  Kf5 {[%clk 0:00:38]} 45. h6 {[%clk 0:00:07]}  Nf6 {[%clk 0:00:38]} 46. Rc3 {[%clk 0:00:06]}  Bd5 {[%clk 0:00:36]} 47. Ra3 {[%clk 0:00:06]}  e4 {[%clk 0:00:34]} 48. a6 {[%clk 0:00:06]}  e3+ {[%clk 0:00:34]} 49. Bxe3 {[%clk 0:00:06]}  fxe3+ {[%clk 0:00:34]} 50. Kxe3 {[%clk 0:00:07]}  Bc4 {[%clk 0:00:20]} 51. a7 {[%clk 0:00:06]}  Bd5 {[%clk 0:00:15]} 52. Kd4 {[%clk 0:00:06]}  Ke6 {[%clk 0:00:14]} 53. Ra6+ {[%clk 0:00:02]}  Ke7 {[%clk 0:00:14]} 54. h7 {[%clk 0:00:02]}  Bb7 {[%clk 0:00:12]} 55. Rb6 {[%clk 0:00:01]}  Nxh7 {[%clk 0:00:08]} 56. Rxb7+ {[%clk 0:00:01]}  Kd6 {[%clk 0:00:09]} 57. Rxh7 {[%clk 0:00:01]}  Kc6 {[%clk 0:00:10]} 0-1


[Site "https://www.chess.com"]

[Event "Titled Tuesday Blitz March 21 Early 2023"]
[White "Ratsma, Midas"]
[Black "Bronstein, Or"]
[WhiteFideId "1032283"]
[BlackFideId "2815770"]
[WhiteElo "2172"]
[BlackElo "2356"]
[Result "0-1"]
[Round "05"]
[TimeControl "180+2"]
[Date "2023.03.21"]
[WhiteClock "0:00:54"]
[BlackClock "0:00:15"]

1. e4 {[%clk 0:02:49]}  c5 {[%clk 0:02:54]} 2. c3 {[%clk 0:02:48]}  d6 {[%clk 0:02:47]} 3. d4 {[%clk 0:02:49]}  Nf6 {[%clk 0:02:47]} 4. Bd3 {[%clk 0:02:46]}  g6 {[%clk 0:02:45]} 5. Nf3 {[%clk 0:02:45]}  Bg7 {[%clk 0:02:45]} 6. O-O {[%clk 0:02:45]}  O-O {[%clk 0:02:46]} 7. h3 {[%clk 0:02:44]}  Nc6 {[%clk 0:02:45]} 8. d5 {[%clk 0:02:43]}  Na5 {[%clk 0:02:44]} 9. b3 {[%clk 0:02:41]}  Bd7 {[%clk 0:02:40]} 10. Nbd2 {[%clk 0:02:38]}  b5 {[%clk 0:02:39]} 11. Qe2 {[%clk 0:02:38]}  a6 {[%clk 0:02:39]} 12. Rd1 {[%clk 0:02:35]}  e6 {[%clk 0:02:37]} 13. dxe6 {[%clk 0:02:35]}  Bxe6 {[%clk 0:02:36]} 14. e5 {[%clk 0:02:34]}  dxe5 {[%clk 0:02:27]} 15. Nxe5 {[%clk 0:02:34]}  Qc7 {[%clk 0:02:25]} 16. Ndf3 {[%clk 0:02:33]}  Nd5 {[%clk 0:02:25]} 17. Bb2 {[%clk 0:02:26]}  c4 {[%clk 0:02:19]} 18. bxc4 {[%clk 0:02:23]}  Nf4 {[%clk 0:02:19]} 19. Qe4 {[%clk 0:02:19]}  Nxd3 {[%clk 0:02:18]} 20. Rxd3 {[%clk 0:02:12]}  Bf5 {[%clk 0:02:13]} 21. Qh4 {[%clk 0:02:00]}  Bxd3 {[%clk 0:01:55]} 22. Nxd3 {[%clk 0:01:57]}  Qxc4 {[%clk 0:01:51]} 23. Nf4 {[%clk 0:01:51]}  h6 {[%clk 0:01:51]} 24. Re1 {[%clk 0:01:44]}  Rae8 {[%clk 0:01:22]} 25. Rd1 {[%clk 0:01:39]}  g5 {[%clk 0:01:15]} 26. Nxg5 {[%clk 0:01:38]}  hxg5 {[%clk 0:01:14]} 27. Qxg5 {[%clk 0:01:39]}  Re5 {[%clk 0:01:13]} 28. Qg3 {[%clk 0:01:36]}  Rf5 {[%clk 0:01:09]} 29. Rd4 {[%clk 0:01:32]}  Qc6 {[%clk 0:00:40]} 30. c4 {[%clk 0:01:32]}  Kh7 {[%clk 0:00:31]} 31. Rd6 {[%clk 0:01:26]}  Bxb2 {[%clk 0:00:22]} 32. Rxc6 {[%clk 0:01:23]}  Nxc6 {[%clk 0:00:22]} 33. Qd3 {[%clk 0:01:23]}  Nd4 {[%clk 0:00:18]} 34. g4 {[%clk 0:01:18]}  bxc4 {[%clk 0:00:16]} 35. Qe4 {[%clk 0:01:19]}  Re8 {[%clk 0:00:14]} 36. Qxe8 {[%clk 0:00:56]}  Rxf4 {[%clk 0:00:15]} 37. Qe5 {[%clk 0:00:54]}  Nf3+ {[%clk 0:00:15]} 0-1


[Site "https://www.chess.com"]

[Event "Titled Tuesday Blitz March 21 Early 2023"]
[White "Korchmar, Vasiliy"]
[Black "Shapiro, Viktor"]
[WhiteFideId "24131750"]
[BlackFideId "4175700"]
[WhiteElo "2370"]
[BlackElo "2152"]
[Result "1-0"]
[Round "05"]
[TimeControl "180+2"]
[Date "2023.03.21"]
[WhiteClock "0:02:09"]
[BlackClock "0:01:04"]

1. e4 {[%clk 0:03:00]}  Nf6 {[%clk 0:03:00]} 2. e5 {[%clk 0:03:01]}  Nd5 {[%clk 0:03:00]} 3. d4 {[%clk 0:03:01]}  d6 {[%clk 0:03:00]} 4. Nf3 {[%clk 0:03:02]}  Bg4 {[%clk 0:03:00]} 5. h3 {[%clk 0:02:57]}  Bh5 {[%clk 0:02:59]} 6. g4 {[%clk 0:02:52]}  Bg6 {[%clk 0:02:59]} 7. Bg2 {[%clk 0:02:48]}  e6 {[%clk 0:02:59]} 8. O-O {[%clk 0:02:47]}  Nc6 {[%clk 0:02:57]} 9. exd6 {[%clk 0:02:40]}  cxd6 {[%clk 0:02:51]} 10. c4 {[%clk 0:02:38]}  Nb6 {[%clk 0:02:47]} 11. d5 {[%clk 0:02:35]}  Na5 {[%clk 0:02:28]} 12. dxe6 {[%clk 0:02:33]}  fxe6 {[%clk 0:02:27]} 13. Nd4 {[%clk 0:02:32]}  e5 {[%clk 0:01:57]} 14. Ne6 {[%clk 0:02:32]}  Qd7 {[%clk 0:01:54]} 15. Nxf8 {[%clk 0:02:32]}  Rxf8 {[%clk 0:01:48]} 16. b3 {[%clk 0:02:31]}  O-O-O {[%clk 0:01:48]} 17. Nc3 {[%clk 0:02:30]}  Nc6 {[%clk 0:01:46]} 18. Ba3 {[%clk 0:02:28]}  h5 {[%clk 0:01:37]} 19. Nb5 {[%clk 0:02:26]}  hxg4 {[%clk 0:01:30]} 20. Qxd6 {[%clk 0:02:12]}  gxh3 {[%clk 0:01:15]} 21. Bxh3 {[%clk 0:02:13]}  Bf5 {[%clk 0:01:06]} 22. Qxd7+ {[%clk 0:02:10]}  Bxd7 {[%clk 0:01:05]} 23. Bxd7+ {[%clk 0:02:09]}  Rxd7 {[%clk 0:01:04]} 24. Bxf8 {[%clk 0:02:09]} 1-0


[Site "https://www.chess.com"]

[Event "Titled Tuesday Blitz March 21 Early 2023"]
[White "Chernobay, Artem"]
[Black "Khandelwal, Ankush"]
[WhiteFideId "4167406"]
[BlackFideId "413470"]
[WhiteElo "2474"]
[BlackElo "2263"]
[Result "1-0"]
[Round "05"]
[TimeControl "180+2"]
[Date "2023.03.21"]
[WhiteClock "0:01:37"]
[BlackClock "0:01:09"]

1. e4 {[%clk 0:03:00]}  c5 {[%clk 0:02:58]} 2. c3 {[%clk 0:02:59]}  Nf6 {[%clk 0:02:49]} 3. e5 {[%clk 0:02:59]}  Nd5 {[%clk 0:02:48]} 4. Nf3 {[%clk 0:02:59]}  Nc6 {[%clk 0:02:38]} 5. Bc4 {[%clk 0:02:59]}  Nb6 {[%clk 0:02:36]} 6. Bb3 {[%clk 0:02:59]}  c4 {[%clk 0:02:33]} 7. Bc2 {[%clk 0:02:58]}  d6 {[%clk 0:02:27]} 8. exd6 {[%clk 0:02:54]}  e5 {[%clk 0:02:23]} 9. d4 {[%clk 0:02:42]}  cxd3 {[%clk 0:02:20]} 10. Qxd3 {[%clk 0:02:41]}  Qxd6 {[%clk 0:02:17]} 11. O-O {[%clk 0:02:34]}  Qxd3 {[%clk 0:02:16]} 12. Bxd3 {[%clk 0:02:35]}  f6 {[%clk 0:02:14]} 13. a4 {[%clk 0:02:24]}  Na5 {[%clk 0:02:13]} 14. Nbd2 {[%clk 0:02:21]}  Be6 {[%clk 0:02:12]} 15. b4 {[%clk 0:02:16]}  Nac4 {[%clk 0:01:30]} 16. a5 {[%clk 0:02:15]}  Nxd2 {[%clk 0:01:30]} 17. Nxd2 {[%clk 0:02:11]}  Nd5 {[%clk 0:01:29]} 18. a6 {[%clk 0:01:58]}  bxa6 {[%clk 0:01:19]} 19. Rxa6 {[%clk 0:01:48]}  Nxc3 {[%clk 0:01:15]} 20. Rxe6+ {[%clk 0:01:46]}  Kf7 {[%clk 0:01:14]} 21. Rc6 {[%clk 0:01:44]}  Na2 {[%clk 0:01:10]} 22. Bc4+ {[%clk 0:01:37]}  Kg6 {[%clk 0:01:09]} 23. Bxa2 {[%clk 0:01:37]} 1-0


[Site "https://www.chess.com"]

[Event "Titled Tuesday Blitz March 21 Early 2023"]
[White "Itgelt, Khuyagtsogt"]
[Black "Girsh, Daniel"]
[WhiteFideId "4902912"]
[BlackFideId "30949190"]
[WhiteElo "2227"]
[BlackElo "2075"]
[Result "1-0"]
[Round "05"]
[TimeControl "180+2"]
[Date "2023.03.21"]
[WhiteClock "0:00:11"]
[BlackClock "0:00:22"]

1. d4 {[%clk 0:02:49]}  Nf6 {[%clk 0:02:59]} 2. Nf3 {[%clk 0:02:48]}  d5 {[%clk 0:02:57]} 3. c4 {[%clk 0:02:48]}  e6 {[%clk 0:02:58]} 4. g3 {[%clk 0:02:49]}  Be7 {[%clk 0:02:58]} 5. Bg2 {[%clk 0:02:49]}  O-O {[%clk 0:02:59]} 6. O-O {[%clk 0:02:50]}  a5 {[%clk 0:02:56]} 7. Qc2 {[%clk 0:02:38]}  c6 {[%clk 0:02:55]} 8. Rd1 {[%clk 0:02:36]}  Na6 {[%clk 0:02:55]} 9. a3 {[%clk 0:02:34]}  b6 {[%clk 0:02:55]} 10. Bf4 {[%clk 0:02:31]}  Bb7 {[%clk 0:02:55]} 11. Nbd2 {[%clk 0:02:31]}  Rc8 {[%clk 0:02:54]} 12. e4 {[%clk 0:02:30]}  c5 {[%clk 0:02:52]} 13. exd5 {[%clk 0:02:23]}  exd5 {[%clk 0:02:52]} 14. Rac1 {[%clk 0:01:52]}  Ne4 {[%clk 0:02:40]} 15. Nxe4 {[%clk 0:01:38]}  dxe4 {[%clk 0:02:40]} 16. dxc5 {[%clk 0:01:35]}  exf3 {[%clk 0:02:27]} 17. Rxd8 {[%clk 0:01:34]}  Rfxd8 {[%clk 0:02:28]} 18. Bh3 {[%clk 0:01:29]}  Rxc5 {[%clk 0:02:23]} 19. Be3 {[%clk 0:01:29]}  Rc6 {[%clk 0:02:05]} 20. Bf5 {[%clk 0:01:29]}  Nc5 {[%clk 0:01:43]} 21. b4 {[%clk 0:01:14]}  axb4 {[%clk 0:01:42]} 22. axb4 {[%clk 0:01:15]}  g6 {[%clk 0:01:33]} 23. bxc5 {[%clk 0:01:14]}  gxf5 {[%clk 0:01:33]} 24. cxb6 {[%clk 0:00:44]}  Bc5 {[%clk 0:01:30]} 25. Qxf5 {[%clk 0:00:34]}  Bxe3 {[%clk 0:01:29]} 26. fxe3 {[%clk 0:00:35]}  Rd2 {[%clk 0:01:29]} 27. e4 {[%clk 0:00:20]}  Rg2+ {[%clk 0:01:19]} 28. Kh1 {[%clk 0:00:16]}  Re6 {[%clk 0:01:14]} 29. Qxf3 {[%clk 0:00:12]}  Bxe4 {[%clk 0:01:14]} 30. Qxg2 {[%clk 0:00:09]}  Bxg2+ {[%clk 0:01:13]} 31. Kxg2 {[%clk 0:00:10]}  Rxb6 {[%clk 0:01:13]} 32. c5 {[%clk 0:00:10]}  Rc6 {[%clk 0:01:08]} 33. Kf3 {[%clk 0:00:10]}  Kf8 {[%clk 0:01:06]} 34. Ke4 {[%clk 0:00:10]}  Ke7 {[%clk 0:01:07]} 35. Kd5 {[%clk 0:00:10]}  Rh6 {[%clk 0:01:07]} 36. c6 {[%clk 0:00:06]}  Kd8 {[%clk 0:01:07]} 37. c7+ {[%clk 0:00:06]}  Kc8 {[%clk 0:01:07]} 38. Rc2 {[%clk 0:00:07]}  Re6 {[%clk 0:01:03]} 39. Rf2 {[%clk 0:00:06]}  Re7 {[%clk 0:01:01]} 40. Rc2 {[%clk 0:00:06]}  Re6 {[%clk 0:00:51]} 41. Rc3 {[%clk 0:00:06]}  Rh6 {[%clk 0:00:49]} 42. h4 {[%clk 0:00:06]}  Re6 {[%clk 0:00:50]} 43. g4 {[%clk 0:00:07]}  h5 {[%clk 0:00:49]} 44. g5 {[%clk 0:00:05]}  Ra6 {[%clk 0:00:48]} 45. Rc4 {[%clk 0:00:05]}  Rb6 {[%clk 0:00:44]} 46. Ke5 {[%clk 0:00:05]}  Re6+ {[%clk 0:00:42]} 47. Kf5 {[%clk 0:00:05]}  Ra6 {[%clk 0:00:40]} 48. Re4 {[%clk 0:00:03]}  Kxc7 {[%clk 0:00:32]} 49. Re7+ {[%clk 0:00:04]}  Kd8 {[%clk 0:00:32]} 50. Rxf7 {[%clk 0:00:04]}  Ra4 {[%clk 0:00:33]} 51. g6 {[%clk 0:00:04]}  Ke8 {[%clk 0:00:29]} 52. Rb7 {[%clk 0:00:04]}  Rxh4 {[%clk 0:00:19]} 53. Rb8+ {[%clk 0:00:04]}  Ke7 {[%clk 0:00:17]} 54. g7 {[%clk 0:00:05]}  Rg4 {[%clk 0:00:15]} 55. g8=Q {[%clk 0:00:05]}  Rxg8 {[%clk 0:00:15]} 56. Rxg8 {[%clk 0:00:06]}  h4 {[%clk 0:00:16]} 57. Rh8 {[%clk 0:00:07]}  h3 {[%clk 0:00:16]} 58. Rxh3 {[%clk 0:00:08]}  Kd6 {[%clk 0:00:17]} 59. Rh6+ {[%clk 0:00:08]}  Kd5 {[%clk 0:00:18]} 60. Re6 {[%clk 0:00:09]}  Kd4 {[%clk 0:00:16]} 61. Re5 {[%clk 0:00:09]}  Kc4 {[%clk 0:00:17]} 62. Kf4 {[%clk 0:00:09]}  Kb4 {[%clk 0:00:18]} 63. Ke4 {[%clk 0:00:09]}  Ka3 {[%clk 0:00:18]} 64. Rb5 {[%clk 0:00:09]}  Ka2 {[%clk 0:00:19]} 65. Rb8 {[%clk 0:00:09]}  Ka1 {[%clk 0:00:20]} 66. Kd4 {[%clk 0:00:10]}  Ka2 {[%clk 0:00:21]} 67. Kc3 {[%clk 0:00:11]}  Ka3 {[%clk 0:00:22]} 68. Ra8# {[%clk 0:00:11]} 1-0


[Site "https://www.chess.com"]

[Event "Titled Tuesday Blitz March 21 Early 2023"]
[White "Tregubov, Pavel V."]
[Black "Sreyas Payyappat"]
[WhiteFideId "4115341"]
[BlackFideId "46674969"]
[WhiteElo "2425"]
[BlackElo "2083"]
[Result "1-0"]
[Round "05"]
[TimeControl "180+2"]
[Date "2023.03.21"]
[WhiteClock "0:01:41"]
[BlackClock "0:00:10"]

1. e4 {[%clk 0:02:49]}  c6 {[%clk 0:02:58]} 2. Nf3 {[%clk 0:02:49]}  d5 {[%clk 0:02:59]} 3. Nc3 {[%clk 0:02:49]}  dxe4 {[%clk 0:03:00]} 4. Nxe4 {[%clk 0:02:49]}  Nf6 {[%clk 0:03:00]} 5. Qe2 {[%clk 0:02:47]}  Nxe4 {[%clk 0:03:00]} 6. Qxe4 {[%clk 0:02:48]}  Nd7 {[%clk 0:03:01]} 7. Bc4 {[%clk 0:02:45]}  Nf6 {[%clk 0:03:02]} 8. Ne5 {[%clk 0:02:45]}  e6 {[%clk 0:03:02]} 9. Qf4 {[%clk 0:02:45]}  Bd6 {[%clk 0:02:57]} 10. d4 {[%clk 0:02:45]}  b5 {[%clk 0:02:55]} 11. Bd3 {[%clk 0:02:45]}  Bb7 {[%clk 0:02:51]} 12. O-O {[%clk 0:02:45]}  Qc7 {[%clk 0:02:51]} 13. Qg3 {[%clk 0:02:39]}  O-O-O {[%clk 0:02:42]} 14. Qxg7 {[%clk 0:02:31]}  Nd5 {[%clk 0:02:31]} 15. Qxf7 {[%clk 0:02:25]}  Bxe5 {[%clk 0:02:30]} 16. Qxe6+ {[%clk 0:02:25]}  Rd7 {[%clk 0:02:10]} 17. Qxe5 {[%clk 0:02:23]}  Qd8 {[%clk 0:02:08]} 18. Bf5 {[%clk 0:02:21]}  Rg8 {[%clk 0:02:07]} 19. Qe6 {[%clk 0:01:55]}  Nb6 {[%clk 0:01:56]} 20. Bf4 {[%clk 0:01:46]}  c5 {[%clk 0:01:54]} 21. f3 {[%clk 0:01:46]}  Rf8 {[%clk 0:00:10]} 22. Qd6 {[%clk 0:01:41]} 1-0


[Site "https://www.chess.com"]